bitfinex/quotes_SOLUSD_20260214
["timestamp","ask_amount","ask_price","bid_price","bid_amount"]
[1771075230346,0.72865971,86.469,86.435,45.74]
[1771075230746,0.72865971,86.469,86.436,0.7291668]
[1771075231054,0.72865971,86.467,86.436,0.7291668]
[1771075231251,0.72865971,86.467,86.438,0.72583762]
[1771075232652,0.72865971,86.467,86.441,0.72583762]
[1771075233054,0.72865971,86.467,86.443,0.72583762]
[1771075233253,0.73773649,86.465,86.436,0.72583762]
[1771075233978,0.73773649,86.465,86.437,0.72583762]
[1771075238256,0.73773649,86.463,86.438,11.56898586]
[1771075238969,0.73773649,86.463,86.438,12.29482348]
[1771075239265,0.73773649,86.463,86.44,11.56871818]
[1771075240145,11.56577455,86.462,86.435,61.9]
[1771075240346,0.77001338,86.461,86.434,45.74]
[1771075240851,0.77001338,86.449,86.434,45.74]
[1771075241467,0.77001338,86.449,86.414,61.9]
[1771075241468,0.77001338,86.449,86.415,0.70939358]
[1771075241661,0.77001338,86.429,86.405,11.57340431]
[1771075241850,0.77001338,86.429,86.4,11.57399693]
[1771075242052,0.77001338,86.429,86.395,11.57465373]
[1771075242252,0.77001338,86.419,86.395,11.57465373]
[1771075242568,0.77001338,86.419,86.396,0.70939358]
[1771075243664,0.77001338,86.419,86.397,11.57447596]
[1771075244268,0.77001338,86.426,86.398,0.70939358]
[1771075244469,0.77001338,86.426,86.397,11.57447596]
[1771075244769,0.77001338,86.419,86.397,11.57447596]
[1771075245173,0.77001338,86.419,86.398,0.70939358]
[1771075246054,0.77001338,86.419,86.397,11.57447596]
[1771075248272,3.42673929,86.45,86.372,0.70939358]
[1771075248273,0.77001338,86.409,86.372,0.70939358]
[1771075248469,0.77001338,86.399,86.372,0.70939358]
[1771075249692,0.77001338,86.417,86.382,0.70939358]
[1771075250279,0.77001338,86.399,86.37,11.77805462]
[1771075250986,0.77001338,86.399,86.371,0.70939358]
[1771075251280,0.77001338,86.399,86.373,0.70939358]
[1771075251583,0.77001338,86.406,86.373,0.70939358]
[1771075252772,0.77001338,86.413,86.373,0.70939358]
[1771075253176,0.77001338,86.413,86.381,0.70939358]
[1771075253577,0.77001338,86.413,86.383,0.70939358]
[1771075253972,11.57019056,86.429,86.391,0.70939358]
[1771075254172,0.77001338,86.428,86.392,0.70939358]
[1771075255085,40.49524783,86.43,86.392,0.70939358]
[1771075255288,0.77001338,86.429,86.391,0.70939358]
[1771075255460,0.77001338,86.429,86.393,0.70939358]
[1771075256086,0.77001338,86.438,86.411,0.70939358]
[1771075256280,0.77001338,86.445,86.413,0.70939358]
[1771075256667,0.77001338,86.457,86.421,0.70939358]
[1771075256976,3.77556066,86.447,86.421,0.70939358]
[1771075257887,3.77556066,86.447,86.422,11.57112772]
[1771075258069,3.77556066,86.447,86.423,0.70939358]
[1771075258471,3.00554728,86.447,86.423,0.70939358]
[1771075258998,3.00554728,86.447,86.431,0.70939358]
[1771075259385,0.77001338,86.473,86.433,0.70939358]
[1771075259771,0.77001338,86.469,86.433,0.70939358]
[1771075259986,0.77001338,86.467,86.433,0.70939358]
[1771075260181,0.77001338,86.459,86.432,45.96]
[1771075260371,0.77001338,86.459,86.423,0.70939358]
[1771075260773,0.77001338,86.459,86.431,0.70939358]
[1771075262190,0.77001338,86.459,86.433,0.7668523]
[1771075262398,0.72976213,86.451,86.423,0.7668523]
[1771075262692,0.72976213,86.451,86.425,0.7668523]
[1771075264186,0.72976213,86.451,86.427,0.7668523]
[1771075265081,0.72976213,86.439,86.398,0.7668523]
[1771075265302,0.72976213,86.439,86.397,11.57447596]
[1771075265303,0.72976213,86.439,86.401,0.7668523]
[1771075265876,0.72976213,86.429,86.395,11.5747439]
[1771075266678,0.72976213,86.427,86.401,0.7668523]
[1771075270303,0.72976213,86.425,86.401,0.7668523]
[1771075271487,0.72976213,86.419,86.398,46.22]
[1771075271687,0.72976213,86.419,86.392,0.7668523]
[1771075272603,0.72976213,86.417,86.392,0.7668523]
[1771075274303,0.72976213,86.417,86.392,12.34191674]
[1771075275293,0.72976213,86.415,86.392,0.7668523]
[1771075275495,0.72976213,86.399,86.357,0.7668523]
[1771075275689,0.72976213,86.379,86.35,0.7668523]
[1771075275890,0.72976213,86.369,86.343,0.7668523]
[1771075276182,0.72976213,86.379,86.343,0.7668523]
[1771075276986,0.72976213,86.377,86.343,0.7668523]
[1771075277304,11.57702192,86.378,86.341,0.7668523]
[1771075277305,0.72976213,86.369,86.341,0.7668523]
[1771075277503,0.72976213,86.369,86.341,12.34875843]
[1771075277708,3.00447828,86.36,86.341,0.7668523]
[1771075278007,0.72976213,86.369,86.341,0.7668523]
[1771075278207,3.00447828,86.4,86.34,0.2]
[1771075278208,28.9378693,86.392,86.354,0.7668523]
[1771075278414,0.72976213,86.39,86.361,0.7668523]
[1771075279111,0.72976213,86.389,86.361,0.7668523]
[1771075281187,3.00475525,86.38,86.351,0.7668523]
[1771075281386,0.72976213,86.387,86.351,0.7668523]
[1771075282788,3.00475525,86.38,86.351,0.7668523]
[1771075282985,0.72976213,86.379,86.351,0.7668523]
[1771075283413,11.57702192,86.378,86.351,0.7668523]
[1771075283598,0.72976213,86.377,86.351,0.7668523]
[1771075283795,0.72976213,86.377,86.32,0.9668523]
[1771075284097,3.00475525,86.35,86.32,0.9668523]
[1771075284804,0.72976213,86.349,86.32,0.9668523]
[1771075285013,0.72976213,86.329,86.31,0.2]
[1771075285607,0.72976213,86.328,86.31,0.2]
[1771075286489,11.58362536,86.329,86.297,46.36]
[1771075286692,0.72976213,86.328,86.297,46.36]
[1771075287006,0.72976213,86.334,86.301,0.7668523]
[1771075287315,0.72976213,86.341,86.301,0.7668523]
[1771075287698,0.72976213,86.341,86.311,0.7668523]
[1771075287915,0.72976213,86.339,86.311,0.7668523]
[1771075289936,0.72976213,86.339,86.313,0.7668523]
[1771075290212,0.72976213,86.337,86.306,0.7668523]
[1771075290905,0.72976213,86.344,86.311,0.7668523]
[1771075291601,7.52068832,86.35,86.311,0.7668523]
[1771075291799,0.79194643,86.368,86.333,0.7265174]
[1771075292819,7.52068832,86.36,86.327,11.58375886]
[1771075293000,0.79194643,86.359,86.331,0.7265174]
[1771075293707,0.79194643,86.349,86.309,0.7265174]
[1771075293917,0.79194643,86.329,86.293,0.7265174]
[1771075294798,0.79194643,86.329,86.301,0.7265174]
[1771075295222,0.79194643,86.329,86.293,0.7265174]
[1771075296803,0.79194643,86.327,86.287,0.7265174]
[1771075297128,0.79194643,86.319,86.287,0.7265174]
[1771075298508,0.79194643,86.319,86.291,0.7265174]
[1771075298726,0.79194643,86.319,86.29,7.52068832]
[1771075298727,0.79194643,86.319,86.292,11.58855977]
[1771075299024,0.79194643,86.317,86.293,0.7265174]
[1771075299404,0.79194643,86.317,86.286,11.58936559]
[1771075300008,0.79194643,86.317,86.287,0.7265174]
[1771075301006,0.75417782,86.315,86.287,0.7265174]
[1771075301205,0.75417782,86.31,86.288,12.36275039]
[1771075301815,0.75417782,86.31,86.289,0.77365342]
[1771075302020,0.75417782,86.318,86.29,8.29434174]
[1771075302221,0.75417782,86.318,86.29,0.77365342]
[1771075302520,0.75417782,86.317,86.288,11.58909697]
[1771075302725,0.75417782,86.317,86.288,12.36275039]
[1771075302904,0.75417782,86.317,86.289,0.77365342]
[1771075303321,0.75417782,86.327,86.291,0.77365342]
[1771075303916,0.75417782,86.319,86.286,0.77365342]
[1771075304116,0.75417782,86.319,86.291,0.77365342]
[1771075304821,0.75417782,86.319,86.285,46.6469973]
[1771075305126,7.52068832,86.29,86.251,0.79429632]
[1771075305423,11.58506916,86.318,86.171,46.41885345]
[1771075305424,7.52068832,86.28,86.241,0.79429632]
[1771075305801,7.52068832,86.3,86.261,0.79429632]
[1771075306006,0.13944699,86.317,86.261,0.79429632]
[1771075306214,7.52068832,86.3,86.257,0.79429632]
[1771075306418,7.52068832,86.3,86.261,0.79429632]
[1771075307106,7.52068832,86.3,86.218,4.61729252]
[1771075307107,7.52068832,86.28,86.245,0.79429632]
[1771075307709,40.56136934,86.289,86.245,0.79429632]
[1771075307914,28.96897909,86.3,86.261,0.79429632]
[1771075308207,40.55666924,86.299,86.261,0.79429632]
[1771075308723,11.58761978,86.299,86.261,0.79429632]
[1771075308907,28.96412493,86.314,86.273,0.79429632]
[1771075309309,11.58547181,86.315,86.281,0.79429632]
[1771075310634,40.54915135,86.315,86.281,0.79429632]
[1771075310938,7.52068832,86.31,86.271,0.79429632]
[1771075311232,11.58627721,86.309,86.271,0.79429632]
[1771075311606,11.58551773,86.315,86.28,7.52068832]
[1771075311830,11.58551773,86.315,86.291,0.79429632]
[1771075312443,11.58547181,86.315,86.291,0.79429632]
[1771075313429,57.91221159,86.338,86.291,0.79429632]
[1771075313430,28.95614627,86.338,86.291,0.79429632]
[1771075313827,7.52068832,86.33,86.301,0.79429632]
[1771075314221,11.58470393,86.321,86.301,0.79429632]
[1771075314930,2.93187913,86.316,86.301,0.79429632]
[1771075315128,2.93187913,86.316,86.311,0.79429632]
[1771075315129,1.35389957,86.316,86.311,0.79429632]
[1771075315430,0.75417782,86.335,86.303,11.58708272]
[1771075315815,0.75417782,86.329,86.286,0.20475341]
[1771075316011,0.75417782,86.319,86.263,0.20475341]
[1771075316318,0.75417782,86.319,86.29,7.52068832]
[1771075316918,0.75417782,86.319,86.29,3.00982806]
[1771075317636,0.75417782,86.317,86.285,11.58938647]
[1771075317947,0.75417782,86.317,86.28,3.00982806]
[1771075318313,0.75417782,86.317,86.29,3.00982806]
[1771075318813,0.75417782,86.317,86.3,3.00982806]
[1771075320045,0.75417782,86.315,86.29,3.00982806]
[1771075320217,0.75417782,86.309,86.267,0.1800048]
[1771075320416,0.75417782,86.309,86.271,0.1800048]
[1771075320632,3.00982806,86.32,86.3,3.00982806]
[1771075320633,0.75417782,86.32,86.3,3.00982806]
[1771075320834,3.00982806,86.34,86.3,3.00982806]
[1771075320835,0.75417782,86.318,86.3,3.00982806]
[1771075321720,0.75417782,86.318,86.29,3.17703285]
[1771075322121,0.75417782,86.318,86.291,11.58869407]
[1771075323025,12.27092588,86.317,86.29,3.17703285]
[1771075323225,0.68572251,86.316,86.29,3.17703285]
[1771075323718,0.68572251,86.314,86.29,3.00982806]
[1771075323923,0.68572251,86.314,86.28,11.59004857]
[1771075323924,0.68572251,86.314,86.28,14.59987663]
[1771075324215,0.68572251,86.314,86.28,3.00982806]
[1771075324426,0.68572251,86.314,86.276,61.9]
[1771075324922,0.68572251,86.314,86.28,3.00982806]
[1771075326641,0.68572251,86.329,86.29,3.00982806]
[1771075327641,0.68572251,86.328,86.3,3.00982806]
[1771075327822,0.68572251,86.328,86.297,0.06995804]
[1771075328022,0.68572251,86.328,86.3,3.0797861]
[1771075328243,0.68572251,86.319,86.284,61.9]
[1771075328420,0.68572251,86.319,86.093,64.22930294]
[1771075328421,0.68572251,86.299,86.26,3.0797861]
[1771075328751,0.68572251,86.298,86.261,11.5927244]
[1771075328918,0.68572251,86.289,86.261,11.5927244]
[1771075330634,0.68572251,86.289,86.254,0.05842203]
[1771075330844,0.68572251,86.289,86.253,11.59379963]
[1771075331932,0.68572251,86.289,86.26,3.00982806]
[1771075332448,12.27472665,86.289,86.26,3.00982806]
[1771075332642,0.68572251,86.289,86.258,46.62]
[1771075332848,0.68572251,86.287,86.258,46.62]
[1771075334934,0.68572251,86.285,86.258,46.62]
[1771075335332,3.00982806,86.28,86.258,46.62]
[1771075335536,0.68572251,86.279,86.233,0.65428889]
[1771075335727,0.68572251,86.279,86.241,46.6]
[1771075336048,40.56277958,86.286,86.241,0.65428889]
[1771075336049,0.68572251,86.285,86.241,0.65428889]
[1771075336231,0.68572251,86.285,86.251,0.65428889]
[1771075336853,0.68572251,86.285,86.253,0.64377125]
[1771075337164,3.00982806,86.3,86.253,0.64377125]
[1771075337165,0.68572251,86.283,86.253,0.64377125]
[1771075337835,0.68572251,86.289,86.251,0.63337441]
[1771075338033,0.68572251,86.288,86.251,0.63337441]
[1771075338740,0.68572251,86.288,86.258,0.62309699]
[1771075338948,0.68572251,86.286,86.252,0.62309699]
[1771075340348,0.68572251,86.279,86.246,46.56]
[1771075340739,0.68572251,86.259,86.218,46.56]
[1771075341050,0.68572251,86.247,86.214,11.59900674]
[1771075341762,0.68572251,86.229,86.204,46.66]
[1771075341932,0.68572251,86.209,86.179,11.60375497]
[1771075342133,0.68572251,86.209,86.176,19.07045482]
[1771075342333,0.68572251,86.209,86.171,11.60478344]
[1771075342760,3.01533973,86.21,86.172,0.58109233]
[1771075342951,0.68572251,86.244,86.202,12.18175124]
[1771075343136,0.68572251,86.244,86.22,7.53849495]
[1771075343335,0.68572251,86.244,86.203,46.68]
[1771075343549,0.68572251,86.239,86.203,46.68]
[1771075343748,0.68572251,86.239,86.21,7.53849495]
[1771075343948,0.68572251,86.239,86.202,11.60065891]
[1771075344160,0.68572251,86.239,86.22,7.53849495]
[1771075344744,7.53849495,86.26,86.202,11.60065891]
[1771075344745,0.68572251,86.257,86.23,7.53849495]
[1771075345053,0.68572251,86.255,86.24,7.53849495]
[1771075345454,0.68572251,86.255,86.23,7.53849495]
[1771075346351,0.68572251,86.255,86.22,7.53849495]
[1771075347068,0.68572251,86.253,86.22,7.53849495]
[1771075347651,0.68572251,86.253,86.23,7.53849495]
[1771075349162,0.68572251,86.253,86.24,7.53849495]
[1771075349348,28.97566154,86.28,86.24,7.53849495]
[1771075349349,0.68572251,86.263,86.24,7.53849495]
[1771075349539,0.68572251,86.263,86.231,11.59675754]
[1771075349735,0.68572251,86.263,86.25,7.53849495]
[1771075349939,0.68572251,86.263,86.24,7.53849495]
[1771075352562,0.55984719,86.27,86.25,7.53849495]
[1771075352859,0.55984719,86.287,86.245,0.46978034]
[1771075353061,0.55984719,86.296,86.27,7.53849495]
[1771075353255,0.55984719,86.296,86.28,7.53849495]
[1771075353566,0.55984719,86.288,86.26,7.53849495]
[1771075354861,0.55984719,86.286,86.27,7.53849495]
[1771075355956,0.55984719,86.286,86.26,7.53849495]
[1771075356554,0.55984719,86.286,86.27,7.53849495]
[1771075356870,2.04728092,86.289,86.27,7.53849495]
[1771075357164,0.55984719,86.288,86.27,7.53849495]
[1771075359772,11.58923128,86.287,86.27,7.53849495]
[1771075359974,12.14907847,86.287,86.27,7.53849495]
[1771075360160,0.55984719,86.287,86.27,7.53849495]
[1771075360467,2.04728092,86.289,86.28,7.53849495]
[1771075363255,2.04728092,86.289,86.27,7.53849495]
[1771075363955,0.51889116,86.279,86.234,11.5963541]
[1771075364170,0.51889116,86.269,86.22,7.53849495]
[1771075364476,0.51889116,86.259,86.22,7.53849495]
[1771075365464,0.51889116,86.259,86.23,7.53849495]
[1771075365664,0.51889116,86.279,86.25,7.53849495]
[1771075366575,0.51889116,86.277,86.229,0.3390825]
[1771075366779,0.51889116,86.277,86.24,7.53849495]
[1771075368083,0.51889116,86.277,86.25,7.53849495]
[1771075368278,0.51889116,86.277,86.232,0.33114837]
[1771075368483,0.51889116,86.277,86.25,7.53849495]
[1771075368673,0.51889116,86.275,86.25,7.53849495]
[1771075370285,0.51889116,86.275,86.24,7.53849495]
[1771075371291,0.51889116,86.273,86.25,7.53849495]
[1771075371983,0.51889116,86.273,86.24,7.53849495]
[1771075373084,0.51889116,86.271,86.24,7.53849495]
[1771075373269,0.51889116,86.271,86.236,11.59597971]
[1771075375188,7.53849495,86.26,86.217,11.59852754]
[1771075375377,0.51889116,86.259,86.24,7.53849495]
[1771075375590,0.51889116,86.269,86.24,7.53849495]
[1771075376484,0.51889116,86.267,86.24,7.53849495]
[1771075379196,0.51889116,86.265,86.24,7.53849495]
[1771075379491,0.51889116,86.265,86.22,7.53849495]
[1771075379685,0.51889116,86.265,86.22,7.86820136]
[1771075379891,0.51889116,86.265,86.221,0.32970641]
[1771075380471,0.51889116,86.259,86.22,7.53849495]
[1771075380884,0.51889116,86.249,86.217,11.59864063]
[1771075381197,0.51889116,86.249,86.22,7.53849495]
[1771075382298,0.49954422,86.267,86.23,7.53849495]
[1771075382501,0.49954422,86.266,86.23,7.53849495]
[1771075382700,0.49954422,86.266,86.24,7.53849495]
[1771075382906,0.49954422,86.266,86.24,3.01338079]
[1771075383406,0.49954422,86.266,86.231,0.32970641]
[1771075384181,0.49954422,86.266,86.24,3.01338079]
[1771075384381,0.49954422,86.264,86.232,11.59662306]
[1771075385308,0.49954422,86.264,86.233,0.32970641]
[1771075385513,0.49954422,86.264,86.24,3.01338079]
[1771075385806,11.59165715,86.269,86.241,0.32970641]
[1771075385983,0.49954422,86.295,86.261,0.32970641]
[1771075386283,0.49954422,86.269,86.221,28.99492057]
[1771075386593,0.49954422,86.259,86.22,3.01338079]
[1771075386792,0.49954422,86.259,86.221,0.32970641]
[1771075386993,0.49954422,86.259,86.23,3.01338079]
[1771075387200,0.49954422,86.259,86.221,0.32970641]
[1771075387584,0.49954422,86.259,86.23,3.01338079]
[1771075388507,0.49954422,86.258,86.231,11.59675754]
[1771075388992,0.49954422,86.258,86.225,0.32970641]
[1771075389301,11.59238643,86.264,86.231,0.32970641]
[1771075389496,0.49954422,86.263,86.231,0.32970641]
[1771075390001,0.49954422,86.263,86.24,7.53498205]
[1771075390687,0.49954422,86.263,86.24,19.13049577]
[1771075391897,0.49954422,86.274,86.241,0.32970641]
[1771075392106,0.49954422,86.281,86.25,7.53498205]
[1771075392805,0.49954422,86.281,86.242,0.32970641]
[1771075393497,0.49954422,86.281,86.25,7.53498205]
[1771075393682,0.49954422,86.281,86.243,4.61729252]
[1771075393683,0.49954422,86.281,86.26,7.53498205]
[1771075393883,0.49954422,86.281,86.252,11.59393405]
[1771075394188,0.49954422,86.28,86.252,11.59393405]
[1771075395395,0.49954422,86.279,86.252,11.59393405]
[1771075396398,0.49954422,86.288,86.26,7.53498205]
[1771075397600,0.49954422,86.286,86.26,7.53498205]
[1771075397984,0.49954422,86.294,86.27,7.53498205]
[1771075398208,1.03082514,86.289,86.27,7.53498205]
[1771075398412,0.49954422,86.288,86.27,7.53498205]
[1771075400084,0.53128092,86.289,86.261,11.5927244]
[1771075400085,11.58923128,86.287,86.261,11.5927244]
[1771075400280,0.49954422,86.286,86.27,7.53498205]
[1771075400791,0.49954422,86.279,86.223,11.59783352]
[1771075400984,0.49954422,86.259,86.222,0.32970641]
[1771075401186,0.49954422,86.259,86.221,11.59810255]
[1771075401382,0.49954422,86.286,86.222,0.32970641]
[1771075401594,0.49954422,86.286,86.24,7.53558009]
[1771075402004,0.53128092,86.289,86.23,0.32970641]
[1771075402005,0.49954422,86.279,86.23,0.32970641]
[1771075402213,0.49954422,86.279,86.24,7.53558009]
[1771075402709,0.49954422,86.279,86.24,7.26558009]
[1771075404411,0.49954422,86.277,86.24,7.26558009]
[1771075406694,0.49954422,86.275,86.233,11.59637179]
[1771075406890,0.49954422,86.275,86.24,7.53558009]
[1771075408113,0.49954422,86.273,86.24,7.53558009]
[1771075408995,0.49954422,86.273,86.24,3.01338756]
[1771075409193,0.49954422,86.271,86.24,3.01338756]
[1771075410116,0.49954422,86.271,86.241,11.92511926]
[1771075410307,0.49954422,86.271,86.241,0.32970641]
[1771075410708,0.49954422,86.271,86.242,0.32970641]
[1771075411018,0.49954422,86.249,86.171,11.60483225]
[1771075411336,0.48176028,86.219,86.181,0.32970641]
[1771075411504,12.08013186,86.219,86.181,0.32970641]
[1771075411917,0.48176028,86.218,86.181,0.32970641]
[1771075413019,0.48176028,86.223,86.181,0.32970641]
[1771075413220,0.48176028,86.208,86.173,11.60456291]
[1771075413404,0.48176028,86.208,86.173,0.32970641]
[1771075413809,0.48176028,86.199,86.17,0.2]
[1771075414818,0.48176028,86.189,86.17,0.2]
[1771075415203,54.80176028,86.189,86.131,0.4721791]
[1771075415403,0.48176028,86.187,86.142,0.4721791]
[1771075415598,0.48176028,86.187,86.135,0.4721791]
[1771075415910,0.48176028,86.206,86.171,0.4721791]
[1771075416498,0.48176028,86.206,86.162,0.4721791]
[1771075416717,0.79699999,86.208,86.19,7.54207278]
[1771075417024,0.48176028,86.221,86.191,0.4721791]
[1771075417208,11.59850611,86.218,86.181,0.4721791]
[1771075417520,0.48176028,86.228,86.191,0.4721791]
[1771075417718,0.48176028,86.227,86.191,0.4721791]
[1771075417921,0.48176028,86.219,86.181,0.4721791]
[1771075418226,0.48176028,86.219,86.19,7.54207278]
[1771075418524,0.48176028,86.219,86.189,0.4721791]
[1771075418722,0.48176028,86.219,86.181,0.4721791]
[1771075419018,0.48176028,86.219,86.19,7.54207278]
[1771075419220,0.48176028,86.219,86.189,0.4721791]
[1771075419522,0.48176028,86.217,86.181,0.4721791]
[1771075419723,0.48176028,86.217,86.182,0.4721791]
[1771075420316,0.46699152,86.239,86.191,0.4721791]
[1771075420528,0.46699152,86.229,86.191,0.4721791]
[1771075421120,0.46699152,86.241,86.211,0.49890007]
[1771075422021,0.46699152,86.25,86.202,0.49890007]
[1771075422221,8.0090643,86.25,86.211,0.49890007]
[1771075422426,0.46699152,86.249,86.211,0.49890007]
[1771075422926,0.46300092,86.252,86.211,0.49890007]
[1771075423223,0.46699152,86.249,86.221,0.49890007]
[1771075423409,0.46699152,86.249,86.211,0.49890007]
[1771075424417,0.46300092,86.252,86.231,0.49890007]
[1771075424620,0.46699152,86.269,86.231,0.49890007]
[1771075425330,0.46699152,86.269,86.241,0.49890007]
[1771075425530,0.46699152,86.278,86.241,0.49890007]
[1771075426413,0.46699152,86.278,86.243,0.49890007]
[1771075426624,0.46699152,86.289,86.251,0.49890007]
[1771075427831,12.0546113,86.299,86.261,0.49890007]
[1771075428012,0.46699152,86.298,86.261,0.49890007]
[1771075428533,0.46699152,86.298,86.263,0.49890007]
[1771075429413,0.46699152,86.298,86.262,11.59259001]
[1771075429414,0.46699152,86.298,86.27,8.04097285]
[1771075430320,0.46699152,86.298,86.27,0.49890007]
[1771075430722,0.46699152,86.298,86.27,12.0903832]
[1771075430921,0.46699152,86.296,86.262,0.49890007]
[1771075431214,0.46699152,86.296,86.26,11.59276909]
[1771075431433,0.46699152,86.279,86.251,11.59394459]
[1771075432133,0.46699152,86.279,86.246,0.49890007]
[1771075432324,0.46699152,86.259,86.223,0.49890007]
[1771075432829,0.46699152,86.259,86.224,12.09659908]
[1771075433031,0.46699152,86.259,86.225,0.49890007]
[1771075433532,0.46699152,86.257,86.218,11.59837803]
[1771075434432,0.46699152,86.239,86.213,11.59915811]
[1771075434639,0.46699152,86.239,86.16,5.36086188]
[1771075434640,0.46699152,86.229,86.202,11.60053233]
[1771075434837,0.46699152,86.229,86.196,0.49890007]
[1771075434838,0.46699152,86.229,86.197,11.60133183]
[1771075435640,0.46699152,86.227,86.19,11.60222635]
[1771075436114,7.54207278,86.22,86.19,11.60222635]
[1771075436315,0.46699152,86.219,86.19,11.60222635]
[1771075436512,0.46699152,86.219,86.183,12.10199371]
[1771075436712,0.46699152,86.217,86.183,12.10199371]
[1771075436917,0.46699152,86.225,86.191,0.49890007]
[1771075437817,7.54207278,86.22,86.191,0.49890007]
[1771075438014,0.46699152,86.219,86.183,12.10199371]
[1771075438238,0.46699152,86.219,86.184,0.49890007]
[1771075439143,0.46699152,86.217,86.171,0.49890007]
[1771075439323,0.46699152,86.217,86.181,0.49890007]
[1771075439532,0.46699152,86.225,86.191,0.49890007]
[1771075440328,7.54207278,86.24,86.191,0.49890007]
[1771075440637,0.46699152,86.242,86.211,0.49890007]
[1771075440820,7.54207278,86.25,86.211,0.49890007]
[1771075440821,0.46699152,86.239,86.211,0.49890007]
[1771075441028,0.46699152,86.239,86.212,11.59931332]
[1771075441630,0.46699152,86.239,86.206,11.60004315]
[1771075441830,7.54207278,86.23,86.206,11.60004315]
[1771075442026,0.48684344,86.229,86.206,11.60004315]
[1771075442632,0.48684344,86.229,86.2,7.54207278]
[1771075442927,0.48684344,86.229,86.197,0.45291929]
[1771075443139,11.59640529,86.234,86.196,11.60146642]
[1771075443140,0.48684344,86.241,86.201,0.45291929]
[1771075443546,0.48684344,86.241,86.211,0.45291929]
[1771075443747,0.48684344,86.259,86.221,0.45291929]
[1771075444343,0.48684344,86.269,86.231,0.45291929]
[1771075444550,0.48684344,86.279,86.231,0.45291929]
[1771075444844,0.48684344,86.277,86.233,0.45291929]
[1771075445648,0.48684344,86.277,86.241,0.45291929]
[1771075446328,0.48684344,86.259,86.222,0.45291929]
[1771075447125,0.48684344,86.259,86.223,11.59783352]
[1771075447647,0.48684344,86.259,86.224,0.45291929]
[1771075447843,0.48684344,86.259,86.18,5.36086188]
[1771075447844,0.48684344,86.249,86.215,0.45291929]
[1771075448041,0.48684344,86.249,86.216,11.59877516]
[1771075449247,0.48684344,86.247,86.215,0.45291929]
[1771075449450,0.48684344,86.247,86.215,12.05180145]
[1771075452437,0.48684344,86.247,86.22,7.54207278]
[1771075452754,0.48684344,86.246,86.216,0.45291929]
[1771075452952,0.48684344,86.239,86.207,0.45291929]
[1771075453138,0.48684344,86.239,86.21,7.99499207]
[1771075453339,0.48684344,86.239,86.211,0.45291929]
[1771075453544,0.48684344,86.239,86.203,11.60046894]
[1771075453745,0.48684344,86.239,86.203,12.05338823]
[1771075453947,0.48684344,86.247,86.211,0.45291929]
[1771075454860,0.48684344,86.247,86.213,0.45291929]
[1771075455958,0.48684344,86.245,86.213,0.45291929]
[1771075458460,0.48684344,86.239,86.21,11.59957894]
[1771075459048,7.54207278,86.23,86.202,11.60063824]
[1771075459249,0.48684344,86.229,86.202,11.60063824]
[1771075459444,0.48684344,86.219,86.192,11.60190129]
[1771075459645,0.48684344,86.219,86.185,0.45291929]
[1771075460269,0.48684344,86.217,86.186,11.60281252]
[1771075460561,0.48684344,86.209,86.176,11.60408096]
[1771075462166,0.48684344,86.209,86.18,7.54207278]
[1771075462466,0.48684344,86.208,86.178,11.60388962]
[1771075463271,0.48684344,86.208,86.178,12.05680891]
[1771075463445,0.48684344,86.207,86.178,12.05680891]
[1771075464271,0.48684344,86.207,86.178,11.60388962]
[1771075464966,0.48684344,86.207,86.176,0.45291929]
[1771075465167,0.48684344,86.205,86.176,0.45291929]
[1771075465867,0.48684344,86.205,86.18,7.99663092]
[1771075466367,0.48684344,86.205,86.18,0.45291929]
[1771075467480,0.48684344,86.205,86.181,12.05640497]
[1771075467657,0.48684344,86.204,86.181,12.05640497]
[1771075467974,0.48684344,86.204,86.181,11.60348568]
[1771075468973,0.48684344,86.204,86.174,11.60442824]
[1771075470081,0.48684344,86.204,86.174,12.05734753]
[1771075470277,0.48684344,86.202,86.171,11.60473442]
[1771075471276,0.48684344,86.202,86.172,0.48609327]
[1771075472174,0.47624612,86.21,86.181,0.48609327]
[1771075472364,0.47624612,86.21,86.183,0.48609327]
[1771075472858,12.0759276,86.21,86.183,0.48609327]
[1771075476474,12.0759276,86.21,86.182,11.60335104]
[1771075476475,11.59960502,86.21,86.185,0.48609327]
[1771075476775,11.59908969,86.214,86.19,8.0298049]
[1771075477075,0.47624612,86.217,86.191,0.48609327]
[1771075477264,0.47624612,86.215,86.191,0.48609327]
[1771075477472,0.47624612,86.215,86.19,7.54371163]
[1771075478052,0.47624612,86.215,86.185,0.48609327]
[1771075478284,0.47624612,86.215,86.191,11.60213943]
[1771075479175,0.47624612,86.215,86.191,12.0882327]
[1771075480265,0.47624612,86.213,86.191,12.0882327]
[1771075480689,0.47624612,86.213,86.192,0.4764783]
[1771075483573,0.47444968,86.235,86.201,0.4764783]
[1771075484278,0.47444968,86.241,86.211,0.4764783]
[1771075484479,0.84485042,86.249,86.221,0.4764783]
[1771075485364,0.37040074,86.249,86.231,0.4764783]
[1771075485660,0.37040074,86.249,86.232,11.59662306]
[1771075487484,0.37040074,86.249,86.233,0.4764783]
[1771075487983,0.37040074,86.249,86.234,11.5963541]
[1771075488162,0.37040074,86.249,86.24,3.01358545]